[Event "Early-Titled-Tuesday-Blitz-August-29-2023"]
[Site "Chess.com"]
[Date "2023.08.29"]
[Round "4"]
[White "Haykoooo0o"]
[Black "ferrufino64"]
[Result "1/2-1/2"]
[WhiteElo "2433"]
[BlackElo "2109"]
[TimeControl "180+1"]
[EndTime "8:40:20 PDT"]
[Termination "Game drawn by repetition"]

1. Nf3 {[%clk 0:02:55.7]} 1... c5 {[%clk 0:02:54.5]} 2. g3 {[%clk 0:02:55.2]}
2... d6 {[%clk 0:02:54.2]} 3. Bg2 {[%clk 0:02:55.7]} 3... Nf6 {[%clk 0:02:54.6]}
4. O-O {[%clk 0:02:56.4]} 4... g6 {[%clk 0:02:54.8]} 5. c4 {[%clk 0:02:57.1]}
5... Bg7 {[%clk 0:02:54.6]} 6. Nc3 {[%clk 0:02:57.7]} 6... e5 {[%clk 0:02:54]}
7. d4 {[%clk 0:02:58.3]} 7... exd4 {[%clk 0:02:53.5]} 8. Nd5 {[%clk 0:02:54.7]}
8... Nxd5 {[%clk 0:02:51.3]} 9. cxd5 {[%clk 0:02:55.6]} 9... O-O {[%clk
0:02:51]} 10. Bg5 {[%clk 0:02:51.9]} 10... f6 {[%clk 0:02:48.5]} 11. Bf4 {[%clk
0:02:50.2]} 11... Qe7 {[%clk 0:02:47.6]} 12. Re1 {[%clk 0:02:44.7]} 12... Nd7
{[%clk 0:02:46.2]} 13. Nd2 {[%clk 0:02:40.1]} 13... Ne5 {[%clk 0:02:45.7]} 14.
b4 {[%clk 0:02:28.9]} 14... b6 {[%clk 0:02:35.4]} 15. a4 {[%clk 0:02:21.2]}
15... Bd7 {[%clk 0:02:23.8]} 16. a5 {[%clk 0:02:16.4]} 16... Nf7 {[%clk
0:02:18.6]} 17. Nc4 {[%clk 0:02:14.4]} 17... Rab8 {[%clk 0:02:08.2]} 18. axb6
{[%clk 0:02:13.4]} 18... axb6 {[%clk 0:02:08.6]} 19. Ra7 {[%clk 0:02:12.8]}
19... Ne5 {[%clk 0:02:08.6]} 20. Qb3 {[%clk 0:02:01.8]} 20... b5 {[%clk
0:01:46.7]} 21. Na5 {[%clk 0:01:55.6]} 21... c4 {[%clk 0:01:43.5]} 22. Qd1
{[%clk 0:01:55.6]} 22... f5 {[%clk 0:01:13.7]} 23. Nc6 {[%clk 0:01:52.3]} 23...
Qf7 {[%clk 0:01:04.3]} 24. Nxd4 {[%clk 0:01:44.6]} 24... Ra8 {[%clk 0:00:57.7]}
25. Rxa8 {[%clk 0:01:41.4]} 25... Rxa8 {[%clk 0:00:57.7]} 26. Nc6 {[%clk
0:01:42.1]} 26... Rc8 {[%clk 0:00:44.5]} 27. Na5 {[%clk 0:01:32.3]} 27... h6
{[%clk 0:00:33.6]} 28. e4 {[%clk 0:01:31.4]} 28... g5 {[%clk 0:00:33.2]} 29. Bc1
{[%clk 0:01:28.7]} 29... fxe4 {[%clk 0:00:31.8]} 30. Bxe4 {[%clk 0:01:27.2]}
30... Bg4 {[%clk 0:00:29.2]} 31. Qc2 {[%clk 0:01:19.7]} 31... Rf8 {[%clk
0:00:25.9]} 32. f4 {[%clk 0:01:17.5]} 32... gxf4 {[%clk 0:00:23.9]} 33. Bxf4
{[%clk 0:01:18.4]} 33... Nf3+ {[%clk 0:00:13.7]} 34. Bxf3 {[%clk 0:01:17.5]}
34... Bxf3 {[%clk 0:00:14.1]} 35. Nc6 {[%clk 0:01:12.7]} 35... Bxd5 {[%clk
0:00:10.9]} 36. Ne7+ {[%clk 0:01:10.9]} 36... Kh8 {[%clk 0:00:10.8]} 37. Ng6+
{[%clk 0:01:09.9]} 37... Kg8 {[%clk 0:00:11.3]} 38. Nxf8 {[%clk 0:01:05.2]}
38... Kxf8 {[%clk 0:00:11.3]} 39. Qf2 {[%clk 0:01:03.3]} 39... Kg8 {[%clk
0:00:11]} 40. Bxd6 {[%clk 0:00:58]} 40... c3 {[%clk 0:00:09.4]} 41. Qxf7+ {[%clk
0:00:56.8]} 41... Kxf7 {[%clk 0:00:09.9]} 42. Be5 {[%clk 0:00:41.7]} 42... Bf8
{[%clk 0:00:02.3]} 43. Bxc3 {[%clk 0:00:41.2]} 43... Bc4 {[%clk 0:00:02.7]} 44.
Re4 {[%clk 0:00:39.2]} 44... Bd6 {[%clk 0:00:01.5]} 45. Kf2 {[%clk 0:00:38.2]}
45... Be7 {[%clk 0:00:01.7]} 46. h4 {[%clk 0:00:37.5]} 46... Bd8 {[%clk
0:00:02.3]} 47. Rf4+ {[%clk 0:00:36.2]} 47... Kg6 {[%clk 0:00:01.7]} 48. Rd4
{[%clk 0:00:34.1]} 48... Bb6 {[%clk 0:00:01.9]} 49. Kf3 {[%clk 0:00:34]} 49...
Bxd4 {[%clk 0:00:02.6]} 50. Bxd4 {[%clk 0:00:34.9]} 50... h5 {[%clk 0:00:03.3]}
51. Bc3 {[%clk 0:00:33.6]} 51... Bb3 {[%clk 0:00:03.9]} 52. Be1 {[%clk
0:00:33.9]} 52... Bc4 {[%clk 0:00:04.5]} 53. Kf4 {[%clk 0:00:34.8]} 53... Bd5
{[%clk 0:00:04.5]} 54. Bf2 {[%clk 0:00:35.2]} 54... Bc4 {[%clk 0:00:04.8]} 55.
Bd4 {[%clk 0:00:36.1]} 55... Bb3 {[%clk 0:00:05.1]} 56. Bf2 {[%clk 0:00:36.4]}
56... Bc4 {[%clk 0:00:05.6]} 57. Ke5 {[%clk 0:00:37.3]} 57... Be2 {[%clk
0:00:06.1]} 58. Kd4 {[%clk 0:00:38.2]} 58... Bg4 {[%clk 0:00:05.9]} 59. Kc5
{[%clk 0:00:37.8]} 59... Be2 {[%clk 0:00:06.5]} 60. Kd5 {[%clk 0:00:38.3]} 60...
Kf5 {[%clk 0:00:05.5]} 61. Kc5 {[%clk 0:00:39.2]} 61... Bc4 {[%clk 0:00:05.9]}
62. Kd4 {[%clk 0:00:39.4]} 62... Kg4 {[%clk 0:00:06.6]} 63. Ke3 {[%clk
0:00:39.4]} 63... Bf1 {[%clk 0:00:06.7]} 64. Be1 {[%clk 0:00:39.6]} 64... Bc4
{[%clk 0:00:07.1]} 65. Kf2 {[%clk 0:00:39.7]} 65... Bd3 {[%clk 0:00:07.4]} 66.
Bd2 {[%clk 0:00:40.6]} 66... Bc4 {[%clk 0:00:07.8]} 67. Bf4 {[%clk 0:00:41.5]}
67... Bd3 {[%clk 0:00:08.1]} 68. Ke3 {[%clk 0:00:42.4]} 68... Bc4 {[%clk
0:00:08.7]} 69. Kd2 {[%clk 0:00:43.3]} 69... Bf1 {[%clk 0:00:09.2]} 70. Be5
{[%clk 0:00:42.1]} 70... Bc4 {[%clk 0:00:09.8]} 71. Bc7 {[%clk 0:00:41.5]} 71...
Bf1 {[%clk 0:00:09.9]} 72. Ke3 {[%clk 0:00:41.7]} 72... Bc4 {[%clk 0:00:09.9]}
73. Kf2 {[%clk 0:00:41.7]} 73... Bd3 {[%clk 0:00:10.1]} 74. Ke1 {[%clk
0:00:42.2]} 74... Bc4 {[%clk 0:00:10.6]} 75. Kd1 {[%clk 0:00:43.1]} 75... Bd5
{[%clk 0:00:11.2]} 76. Kc1 {[%clk 0:00:44]} 76... Bc4 {[%clk 0:00:12]} 77. Kd2
{[%clk 0:00:44.9]} 77... Bd5 {[%clk 0:00:12.7]} 78. Ke3 {[%clk 0:00:45.8]} 78...
Bc4 {[%clk 0:00:13.5]} 79. Kd4 {[%clk 0:00:46.7]} 79... Bf1 {[%clk 0:00:13.5]}
80. Kc5 {[%clk 0:00:46.4]} 80... Bc4 {[%clk 0:00:13.3]} 81. Kd4 {[%clk
0:00:46.9]} 81... Bf1 {[%clk 0:00:13.8]} 82. Ke3 {[%clk 0:00:46.7]} 82... Bc4
{[%clk 0:00:14.4]} 1/2-1/2

[Event "Early-Titled-Tuesday-Blitz-August-29-2023"]
[Site "Chess.com"]
[Date "2023.08.29"]
[Round "4"]
[White "skkeyan1309"]
[Black "platy3"]
[Result "1-0"]
[WhiteElo "2699"]
[BlackElo "2919"]
[TimeControl "180+1"]
[EndTime "8:40:23 PDT"]
[Termination "skkeyan1309 won by resignation"]

1. d4 {[%clk 0:03:00.9]} 1... Nf6 {[%clk 0:02:59.5]} 2. c4 {[%clk 0:03:01.4]}
2... e6 {[%clk 0:02:59.1]} 3. Nc3 {[%clk 0:03:02]} 3... Bb4 {[%clk 0:02:58.9]}
4. Qc2 {[%clk 0:03:02.2]} 4... O-O {[%clk 0:02:56.4]} 5. a3 {[%clk 0:02:57.9]}
5... Bxc3+ {[%clk 0:02:56.3]} 6. Qxc3 {[%clk 0:02:58.8]} 6... b6 {[%clk
0:02:54.9]} 7. e3 {[%clk 0:02:56.2]} 7... Bb7 {[%clk 0:02:55]} 8. Nf3 {[%clk
0:02:55.6]} 8... d6 {[%clk 0:02:55.5]} 9. b3 {[%clk 0:02:52.9]} 9... Nbd7 {[%clk
0:02:55]} 10. Bb2 {[%clk 0:02:53.3]} 10... Re8 {[%clk 0:02:54.4]} 11. Be2 {[%clk
0:02:50]} 11... e5 {[%clk 0:02:54.4]} 12. O-O {[%clk 0:02:49.9]} 12... a5 {[%clk
0:02:53.5]} 13. Rfd1 {[%clk 0:02:43.5]} 13... Qe7 {[%clk 0:02:53.5]} 14. b4
{[%clk 0:02:35.7]} 14... Ne4 {[%clk 0:02:42.1]} 15. Qc2 {[%clk 0:02:35.3]} 15...
Ng5 {[%clk 0:02:42.5]} 16. d5 {[%clk 0:02:29.4]} 16... Nxf3+ {[%clk 0:02:36]}
17. Bxf3 {[%clk 0:02:29.6]} 17... Nf6 {[%clk 0:02:36.2]} 18. Bc3 {[%clk
0:02:18.5]} 18... axb4 {[%clk 0:02:31.5]} 19. axb4 {[%clk 0:02:19.4]} 19... b5
{[%clk 0:02:20.4]} 20. cxb5 {[%clk 0:02:10.4]} 20... Rxa1 {[%clk 0:02:12.2]} 21.
Bxa1 {[%clk 0:02:05.8]} 21... Qd7 {[%clk 0:02:12.4]} 22. Qc4 {[%clk 0:02:03.2]}
22... Ra8 {[%clk 0:02:09.9]} 23. Bb2 {[%clk 0:02:01.7]} 23... Ne8 {[%clk
0:01:53]} 24. e4 {[%clk 0:01:57.5]} 24... Qe7 {[%clk 0:01:39.9]} 25. Bc1 {[%clk
0:01:46]} 25... Bc8 {[%clk 0:01:22.3]} 26. Qc6 {[%clk 0:01:26.6]} 26... Rb8
{[%clk 0:01:22.6]} 27. Be2 {[%clk 0:01:18.4]} 27... Bd7 {[%clk 0:01:10.7]} 28.
Qa6 {[%clk 0:01:18.2]} 28... Nf6 {[%clk 0:01:08.9]} 29. f3 {[%clk 0:01:14]}
29... Qd8 {[%clk 0:01:06.1]} 30. Be3 {[%clk 0:00:42]} 30... Ra8 {[%clk
0:01:03.9]} 31. Ba7 {[%clk 0:00:42.1]} 31... Bc8 {[%clk 0:00:53.3]} 32. Qa5
{[%clk 0:00:39.5]} 32... Nd7 {[%clk 0:00:43]} 33. Rc1 {[%clk 0:00:34.8]} 33...
Nb6 {[%clk 0:00:42.6]} 34. Bxb6 {[%clk 0:00:33.8]} 34... Rxa5 {[%clk 0:00:42.9]}
35. Bxa5 {[%clk 0:00:34.7]} 35... Qg5 {[%clk 0:00:28.1]} 36. Rxc7 {[%clk
0:00:30.7]} 36... Bh3 {[%clk 0:00:28.7]} 37. Kf2 {[%clk 0:00:22.9]} 37... Qxg2+
{[%clk 0:00:26.8]} 38. Ke1 {[%clk 0:00:23.4]} 38... Qg1+ {[%clk 0:00:23.1]} 39.
Kd2 {[%clk 0:00:23.6]} 39... Qd4+ {[%clk 0:00:23.1]} 40. Bd3 {[%clk 0:00:23.8]}
40... h5 {[%clk 0:00:12.6]} 41. Kc2 {[%clk 0:00:10.5]} 41... Qf2+ {[%clk
0:00:11.4]} 42. Kb3 {[%clk 0:00:10.6]} 42... Qxf3 {[%clk 0:00:10.9]} 43. Rc3
{[%clk 0:00:11.3]} 43... Bf1 {[%clk 0:00:08.3]} 44. Bxf1 {[%clk 0:00:06.8]}
44... Qxf1 {[%clk 0:00:09.2]} 45. b6 {[%clk 0:00:07.1]} 45... Qb5 {[%clk
0:00:04.5]} 46. Rc7 {[%clk 0:00:05.6]} 46... Kh7 {[%clk 0:00:01.8]} 47. b7
{[%clk 0:00:05.8]} 47... Kg6 {[%clk 0:00:02.2]} 48. Rd7 {[%clk 0:00:05]} 48...
f5 {[%clk 0:00:01.3]} 49. Rxd6+ {[%clk 0:00:05.2]} 49... Kg5 {[%clk 0:00:02]}
50. Rb6 {[%clk 0:00:05.5]} 50... Qd3+ {[%clk 0:00:02.8]} 51. Ka4 {[%clk
0:00:06.1]} 51... Qc2+ {[%clk 0:00:02.8]} 52. Kb5 {[%clk 0:00:06.7]} 52... Qd3+
{[%clk 0:00:02.6]} 53. Kc6 {[%clk 0:00:07.3]} 53... Qc4+ {[%clk 0:00:02.6]} 54.
Kd7 {[%clk 0:00:08]} 54... fxe4 {[%clk 0:00:02.4]} 55. b8=Q {[%clk 0:00:08.5]}
55... Qxd5+ {[%clk 0:00:03]} 56. Qd6 {[%clk 0:00:08.4]} 56... Qf7+ {[%clk
0:00:03.5]} 57. Qe7+ {[%clk 0:00:09.1]} 57... Qxe7+ {[%clk 0:00:03.7]} 58. Kxe7
{[%clk 0:00:10]} 58... e3 {[%clk 0:00:04.4]} 59. Re6 {[%clk 0:00:10.4]} 59...
Kf5 {[%clk 0:00:04]} 60. b5 {[%clk 0:00:10.7]} 60... g5 {[%clk 0:00:03.3]} 61.
b6 {[%clk 0:00:11]} 1-0

[Event "Early-Titled-Tuesday-Blitz-August-29-2023"]
[Site "Chess.com"]
[Date "2023.08.29"]
[Round "4"]
[White "a-z30"]
[Black "SHIVACalypso"]
[Result "1-0"]
[WhiteElo "2363"]
[BlackElo "2494"]
[TimeControl "180+1"]
[EndTime "8:40:25 PDT"]
[Termination "a-z30 won by resignation"]

1. d3 {[%clk 0:02:58.4]} 1... d5 {[%clk 0:02:58.5]} 2. Nf3 {[%clk 0:02:59.3]}
2... Nf6 {[%clk 0:02:58.9]} 3. g3 {[%clk 0:03:00]} 3... e6 {[%clk 0:02:57.9]} 4.
Bg2 {[%clk 0:03:00.6]} 4... c5 {[%clk 0:02:58.5]} 5. O-O {[%clk 0:03:01.2]} 5...
Nc6 {[%clk 0:02:59.4]} 6. c4 {[%clk 0:03:01.5]} 6... Be7 {[%clk 0:02:59]} 7. Bf4
{[%clk 0:03:00.8]} 7... O-O {[%clk 0:02:58.7]} 8. Ne5 {[%clk 0:03:01]} 8... Bd7
{[%clk 0:02:58]} 9. cxd5 {[%clk 0:02:41.9]} 9... exd5 {[%clk 0:02:57.3]} 10. Nc3
{[%clk 0:02:26.8]} 10... Nxe5 {[%clk 0:02:31.7]} 11. Bxe5 {[%clk 0:02:26.3]}
11... Bc6 {[%clk 0:02:32.1]} 12. Qb3 {[%clk 0:02:16.5]} 12... a5 {[%clk
0:01:27.3]} 13. Bxf6 {[%clk 0:02:08.4]} 13... Bxf6 {[%clk 0:01:26.2]} 14. Nxd5
{[%clk 0:02:04.5]} 14... a4 {[%clk 0:01:19.9]} 15. Nxf6+ {[%clk 0:02:02.7]}
15... Qxf6 {[%clk 0:01:20.8]} 16. Qb6 {[%clk 0:01:56]} 16... Ra6 {[%clk
0:01:14.8]} 17. Qxc5 {[%clk 0:01:53.8]} 17... Bxg2 {[%clk 0:01:14.1]} 18. Kxg2
{[%clk 0:01:53.7]} 18... Qxb2 {[%clk 0:01:14.1]} 19. e4 {[%clk 0:01:37.1]} 19...
Rc6 {[%clk 0:01:00.5]} 20. Qe3 {[%clk 0:01:36.4]} 20... Qa3 {[%clk 0:00:56.1]}
21. d4 {[%clk 0:01:31.2]} 21... Qxe3 {[%clk 0:00:53.9]} 22. fxe3 {[%clk
0:01:30.4]} 22... g6 {[%clk 0:00:54.3]} 23. Rab1 {[%clk 0:01:21]} 23... Rb8
{[%clk 0:00:38.4]} 24. Rf2 {[%clk 0:01:13.4]} 24... b5 {[%clk 0:00:35.4]} 25.
Rfb2 {[%clk 0:01:07.1]} 25... Rcb6 {[%clk 0:00:35.2]} 26. Rb4 {[%clk 0:01:06.4]}
26... Kf8 {[%clk 0:00:35.4]} 27. e5 {[%clk 0:01:05.6]} 27... Ke7 {[%clk
0:00:33.6]} 28. Kf3 {[%clk 0:01:05.8]} 28... f6 {[%clk 0:00:31.6]} 29. exf6+
{[%clk 0:01:03.6]} 29... Rxf6+ {[%clk 0:00:31.4]} 30. Ke4 {[%clk 0:01:02]} 30...
Rf2 {[%clk 0:00:29.1]} 31. Rxa4 {[%clk 0:00:50.5]} 31... bxa4 {[%clk 0:00:25.2]}
32. Rxb8 {[%clk 0:00:49.3]} 32... Rxh2 {[%clk 0:00:25.8]} 33. a3 {[%clk
0:00:42.3]} 33... Ra2 {[%clk 0:00:23.8]} 34. Rb7+ {[%clk 0:00:41.7]} 34... Kf6
{[%clk 0:00:22.9]} 35. Rxh7 {[%clk 0:00:38.2]} 35... Rxa3 {[%clk 0:00:23.3]} 36.
Ra7 {[%clk 0:00:37.9]} 36... Ra1 {[%clk 0:00:23.3]} 37. Ra6+ {[%clk 0:00:33.9]}
37... Kf7 {[%clk 0:00:22.1]} 38. Ke5 {[%clk 0:00:33]} 38... a3 {[%clk
0:00:21.9]} 39. e4 {[%clk 0:00:33]} 39... a2 {[%clk 0:00:21.6]} 40. Ra7+ {[%clk
0:00:33.3]} 40... Kf8 {[%clk 0:00:16]} 41. d5 {[%clk 0:00:34.2]} 41... g5 {[%clk
0:00:15]} 42. g4 {[%clk 0:00:33.9]} 42... Kg8 {[%clk 0:00:14.3]} 43. d6 {[%clk
0:00:30.9]} 43... Kf8 {[%clk 0:00:13.6]} 44. Ke6 {[%clk 0:00:23]} 44... Re1
{[%clk 0:00:13.5]} 45. Ra8+ {[%clk 0:00:19.9]} 45... Kg7 {[%clk 0:00:13.2]} 46.
Rxa2 {[%clk 0:00:19.2]} 46... Rxe4+ {[%clk 0:00:13.7]} 47. Kd5 {[%clk
0:00:15.8]} 47... Re1 {[%clk 0:00:06]} 48. Rd2 {[%clk 0:00:09.6]} 48... Kf7
{[%clk 0:00:05.8]} 49. Kc6 {[%clk 0:00:09.4]} 49... Ke8 {[%clk 0:00:04.6]} 50.
Rd4 {[%clk 0:00:08.2]} 50... Rc1+ {[%clk 0:00:02.2]} 51. Kd5 {[%clk 0:00:08.4]}
51... Kd7 {[%clk 0:00:02.1]} 52. Ke5 {[%clk 0:00:07.6]} 52... Rf1 {[%clk
0:00:01.1]} 53. Kd5 {[%clk 0:00:02.6]} 53... Re1 {[%clk 0:00:01.4]} 54. Re4
{[%clk 0:00:02.3]} 54... Rxe4 {[%clk 0:00:01.4]} 55. Kxe4 {[%clk 0:00:02.5]}
55... Kxd6 {[%clk 0:00:02.3]} 56. Kf5 {[%clk 0:00:03.4]} 56... Ke7 {[%clk
0:00:03]} 57. Kxg5 {[%clk 0:00:04.2]} 57... Kf7 {[%clk 0:00:03.4]} 58. Kh6
{[%clk 0:00:04.5]} 58... Kf8 {[%clk 0:00:03.1]} 59. Kg6 {[%clk 0:00:04.7]} 59...
Kg8 {[%clk 0:00:03.3]} 60. g5 {[%clk 0:00:05.6]} 60... Kf8 {[%clk 0:00:03.9]}
61. Kh7 {[%clk 0:00:05.8]} 61... Kf7 {[%clk 0:00:04.4]} 62. g6+ {[%clk
0:00:06.5]} 62... Kf8 {[%clk 0:00:04.9]} 63. g7+ {[%clk 0:00:07.4]} 1-0

[Event "Early-Titled-Tuesday-Blitz-August-29-2023"]
[Site "Chess.com"]
[Date "2023.08.29"]
[Round "4"]
[White "sokidze"]
[Black "angryspacevoid"]
[Result "1-0"]
[WhiteElo "2777"]
[BlackElo "2527"]
[TimeControl "180+1"]
[EndTime "8:40:26 PDT"]
[Termination "sokidze won on time"]

1. e4 {[%clk 0:02:56.7]} 1... e5 {[%clk 0:02:55.9]} 2. Nf3 {[%clk 0:02:56.3]}
2... Nc6 {[%clk 0:02:56.3]} 3. Bb5 {[%clk 0:02:56.2]} 3... f5 {[%clk 0:02:56.2]}
4. d3 {[%clk 0:02:50.9]} 4... Nf6 {[%clk 0:02:54.9]} 5. O-O {[%clk 0:02:38.9]}
5... Bc5 {[%clk 0:02:43.5]} 6. exf5 {[%clk 0:02:09.8]} 6... O-O {[%clk
0:02:27.4]} 7. Bxc6 {[%clk 0:01:27.1]} 7... dxc6 {[%clk 0:02:21.3]} 8. Nxe5
{[%clk 0:01:27.3]} 8... Bxf5 {[%clk 0:02:19.2]} 9. c3 {[%clk 0:01:27.9]} 9...
Qd5 {[%clk 0:02:08.8]} 10. d4 {[%clk 0:01:25.6]} 10... Bd6 {[%clk 0:02:04.2]}
11. Bf4 {[%clk 0:01:02.5]} 11... Rae8 {[%clk 0:01:51.9]} 12. Nd2 {[%clk
0:00:52.5]} 12... c5 {[%clk 0:01:41.3]} 13. Ndc4 {[%clk 0:00:50.6]} 13... cxd4
{[%clk 0:01:38.9]} 14. Qxd4 {[%clk 0:00:48.6]} 14... Qxd4 {[%clk 0:01:32.2]} 15.
cxd4 {[%clk 0:00:48.7]} 15... Nd5 {[%clk 0:01:31.9]} 16. Bg3 {[%clk 0:00:45.7]}
16... Be7 {[%clk 0:01:17.8]} 17. a3 {[%clk 0:00:43.2]} 17... h5 {[%clk
0:01:12.4]} 18. h3 {[%clk 0:00:38.1]} 18... h4 {[%clk 0:01:09.8]} 19. Bh2 {[%clk
0:00:38.2]} 19... Bg5 {[%clk 0:01:02.6]} 20. Na5 {[%clk 0:00:27.9]} 20... Nf4
{[%clk 0:00:54.3]} 21. Bxf4 {[%clk 0:00:10.5]} 21... Bxf4 {[%clk 0:00:53.8]} 22.
Nxb7 {[%clk 0:00:11.1]} 22... Rb8 {[%clk 0:00:34.2]} 23. Nc5 {[%clk 0:00:10.9]}
23... Rxb2 {[%clk 0:00:33.4]} 24. Ned3 {[%clk 0:00:11.2]} 24... Bxd3 {[%clk
0:00:30.2]} 25. Nxd3 {[%clk 0:00:12.1]} 25... Rd2 {[%clk 0:00:30.5]} 26. Rfd1
{[%clk 0:00:12.3]} 26... Bh6 {[%clk 0:00:24.7]} 27. Rxd2 {[%clk 0:00:07.3]}
27... Bxd2 {[%clk 0:00:25.6]} 28. Rd1 {[%clk 0:00:07.2]} 28... Bc3 {[%clk
0:00:25.2]} 29. Ne5 {[%clk 0:00:03]} 29... c5 {[%clk 0:00:21.1]} 30. Ng6 {[%clk
0:00:01.8]} 30... Rf6 {[%clk 0:00:19.7]} 31. Ne7+ {[%clk 0:00:02.2]} 31... Kf7
{[%clk 0:00:19.4]} 32. Nd5 {[%clk 0:00:03.1]} 32... Bxd4 {[%clk 0:00:18.4]} 33.
Nxf6 {[%clk 0:00:03.5]} 33... gxf6 {[%clk 0:00:19]} 34. Kf1 {[%clk 0:00:03.8]}
34... Ke6 {[%clk 0:00:19.6]} 35. Ke2 {[%clk 0:00:04.1]} 35... Kd5 {[%clk
0:00:18.9]} 36. Rc1 {[%clk 0:00:02.1]} 36... c4 {[%clk 0:00:12.9]} 37. Rc2
{[%clk 0:00:02.5]} 37... a5 {[%clk 0:00:11.4]} 38. g3 {[%clk 0:00:02.2]} 38...
hxg3 {[%clk 0:00:10.5]} 39. fxg3 {[%clk 0:00:03.1]} 39... a4 {[%clk 0:00:10.9]}
40. h4 {[%clk 0:00:02.2]} 40... Bc5 {[%clk 0:00:11.1]} 41. h5 {[%clk 0:00:01.3]}
41... Bxa3 {[%clk 0:00:10.8]} 42. Ra2 {[%clk 0:00:01.7]} 42... Bf8 {[%clk
0:00:09.3]} 43. Rxa4 {[%clk 0:00:02.4]} 43... Bh6 {[%clk 0:00:07.7]} 44. Ra6
{[%clk 0:00:03.1]} 44... Ke5 {[%clk 0:00:07.1]} 45. Rc6 {[%clk 0:00:03]} 45...
Kf5 {[%clk 0:00:03.1]} 46. Rxc4 {[%clk 0:00:03.2]} 46... Kg5 {[%clk 0:00:04]}
47. Rh4 {[%clk 0:00:02.1]} 47... f5 {[%clk 0:00:04.4]} 48. Kf3 {[%clk
0:00:02.7]} 48... Bf8 {[%clk 0:00:04.9]} 49. Rh1 {[%clk 0:00:03.4]} 49... Bh6
{[%clk 0:00:05.3]} 50. Rh2 {[%clk 0:00:04]} 50... Bf8 {[%clk 0:00:05.8]} 51. Rh1
{[%clk 0:00:02.8]} 51... Bh6 {[%clk 0:00:06.2]} 52. Kg2 {[%clk 0:00:03.1]} 52...
Bf8 {[%clk 0:00:06.8]} 53. Kf2 {[%clk 0:00:03.7]} 53... Bh6 {[%clk 0:00:06.9]}
54. Ke2 {[%clk 0:00:04.2]} 54... Bf8 {[%clk 0:00:06.5]} 55. Kd3 {[%clk
0:00:04.3]} 55... Bh6 {[%clk 0:00:06.8]} 56. Kd4 {[%clk 0:00:04.6]} 56... Kg4
{[%clk 0:00:06.8]} 57. Ke5 {[%clk 0:00:04.4]} 57... Kg5 {[%clk 0:00:01.6]} 58.
Rf1 {[%clk 0:00:02.8]} 58... Bg7+ {[%clk 0:00:01.9]} 59. Ke6 {[%clk 0:00:03]}
59... Kxh5 {[%clk 0:00:01.6]} 60. Kxf5 {[%clk 0:00:03.5]} 1-0

[Event "Early-Titled-Tuesday-Blitz-August-29-2023"]
[Site "Chess.com"]
[Date "2023.08.29"]
[Round "4"]
[White "jinbojinbo"]
[Black "Shuvalov"]
[Result "0-1"]
[WhiteElo "2678"]
[BlackElo "2476"]
[TimeControl "180+1"]
[EndTime "8:40:27 PDT"]
[Termination "Shuvalov won on time"]

1. Nf3 {[%clk 0:03:00.9]} 1... Nf6 {[%clk 0:02:59.3]} 2. c4 {[%clk 0:03:00.2]}
2... g6 {[%clk 0:02:56.5]} 3. Nc3 {[%clk 0:03:00.4]} 3... d5 {[%clk 0:02:56.8]}
4. cxd5 {[%clk 0:02:58.7]} 4... Nxd5 {[%clk 0:02:57.7]} 5. e4 {[%clk 0:02:58.5]}
5... Nxc3 {[%clk 0:02:57.1]} 6. bxc3 {[%clk 0:02:59.4]} 6... Bg7 {[%clk
0:02:57.2]} 7. d4 {[%clk 0:02:58.7]} 7... c5 {[%clk 0:02:57.4]} 8. Be3 {[%clk
0:02:55.6]} 8... Qa5 {[%clk 0:02:54.3]} 9. Qd2 {[%clk 0:02:52.2]} 9... O-O
{[%clk 0:02:53.4]} 10. Rb1 {[%clk 0:02:42.5]} 10... a6 {[%clk 0:02:49.6]} 11.
Rc1 {[%clk 0:02:42.4]} 11... Nd7 {[%clk 0:02:42.8]} 12. d5 {[%clk 0:02:38.9]}
12... Nf6 {[%clk 0:02:27.9]} 13. c4 {[%clk 0:02:21.1]} 13... Qxd2+ {[%clk
0:02:26.6]} 14. Nxd2 {[%clk 0:02:22]} 14... b6 {[%clk 0:02:26.7]} 15. h3 {[%clk
0:02:16.6]} 15... e6 {[%clk 0:02:18.6]} 16. e5 {[%clk 0:02:01.7]} 16... Nd7
{[%clk 0:02:14.8]} 17. f4 {[%clk 0:02:01.6]} 17... Bb7 {[%clk 0:02:12.8]} 18.
Be2 {[%clk 0:01:28.9]} 18... exd5 {[%clk 0:02:09.8]} 19. Bf3 {[%clk 0:01:29.1]}
19... f6 {[%clk 0:01:57.8]} 20. e6 {[%clk 0:01:23.8]} 20... Rfe8 {[%clk
0:01:51.2]} 21. cxd5 {[%clk 0:01:23.2]} 21... f5 {[%clk 0:01:41.9]} 22. Kf2
{[%clk 0:01:21.4]} 22... Nf6 {[%clk 0:01:41.5]} 23. Nc4 {[%clk 0:01:10.2]} 23...
Bxd5 {[%clk 0:01:27.5]} 24. Nxb6 {[%clk 0:01:09.7]} 24... Rad8 {[%clk
0:01:27.4]} 25. Nxd5 {[%clk 0:01:01.2]} 25... Nxd5 {[%clk 0:01:28.3]} 26. Bxc5
{[%clk 0:00:48.4]} 26... Nxf4 {[%clk 0:01:20.4]} 27. e7 {[%clk 0:00:38.9]} 27...
Nd3+ {[%clk 0:01:05.3]} 28. Ke2 {[%clk 0:00:31.7]} 28... Nxc5 {[%clk 0:00:57.3]}
29. Rxc5 {[%clk 0:00:27.5]} 29... Rxe7+ {[%clk 0:00:57.7]} 30. Kf1 {[%clk
0:00:27.8]} 30... Rd2 {[%clk 0:00:44.1]} 31. Bd5+ {[%clk 0:00:27.6]} 31... Kf8
{[%clk 0:00:41.8]} 32. Rc8+ {[%clk 0:00:26.3]} 32... Re8 {[%clk 0:00:42]} 33.
Rxe8+ {[%clk 0:00:27]} 33... Kxe8 {[%clk 0:00:42.9]} 34. Bb3 {[%clk 0:00:27]}
34... Rb2 {[%clk 0:00:36.8]} 35. g4 {[%clk 0:00:20.6]} 35... f4 {[%clk
0:00:30.1]} 36. h4 {[%clk 0:00:20.8]} 36... Bd4 {[%clk 0:00:26]} 37. Rh3 {[%clk
0:00:20.4]} 37... Be3 {[%clk 0:00:23.8]} 38. Rf3 {[%clk 0:00:17.7]} 38... Ke7
{[%clk 0:00:23.4]} 39. h5 {[%clk 0:00:17.7]} 39... gxh5 {[%clk 0:00:23.3]} 40.
gxh5 {[%clk 0:00:18.6]} 40... h6 {[%clk 0:00:24]} 41. Ke1 {[%clk 0:00:14.1]}
41... Kf6 {[%clk 0:00:23.4]} 42. Bc4 {[%clk 0:00:11.4]} 42... a5 {[%clk
0:00:22.4]} 43. a4 {[%clk 0:00:10.6]} 43... Kf5 {[%clk 0:00:21.1]} 44. Bb5
{[%clk 0:00:10.1]} 44... Kg4 {[%clk 0:00:20.7]} 45. Bc6 {[%clk 0:00:10.2]} 45...
Rc2 {[%clk 0:00:19.1]} 46. Ba8 {[%clk 0:00:10.3]} 46... Rb2 {[%clk 0:00:18.9]}
47. Rf1 {[%clk 0:00:08.3]} 47... Ra2 {[%clk 0:00:18.1]} 48. Bf3+ {[%clk
0:00:07.6]} 48... Kf5 {[%clk 0:00:17.9]} 49. Bc6 {[%clk 0:00:07.2]} 49... Rc2
{[%clk 0:00:17]} 50. Bb5 {[%clk 0:00:06.9]} 50... Ke5 {[%clk 0:00:16.4]} 51. Kd1
{[%clk 0:00:05.8]} 51... Ra2 {[%clk 0:00:15.8]} 52. Bc6 {[%clk 0:00:04.9]} 52...
Kd4 {[%clk 0:00:15.6]} 53. Bb5 {[%clk 0:00:03.8]} 53... Ke4 {[%clk 0:00:14.8]}
54. Bc6+ {[%clk 0:00:03.4]} 54... Kd3 {[%clk 0:00:15]} 55. Bb5+ {[%clk
0:00:03.6]} 55... Kd4 {[%clk 0:00:15.4]} 56. Rf3 {[%clk 0:00:03.3]} 56... Rd2+
{[%clk 0:00:15.3]} 57. Ke1 {[%clk 0:00:03.1]} 57... Rc2 {[%clk 0:00:15.8]} 58.
Kf1 {[%clk 0:00:03.5]} 58... Ke4 {[%clk 0:00:15.7]} 59. Rh3 {[%clk 0:00:02.7]}
59... f3 {[%clk 0:00:14.6]} 60. Rh4+ {[%clk 0:00:02.4]} 60... Bf4 {[%clk
0:00:15]} 61. Bd3+ {[%clk 0:00:01.7]} 61... Kxd3 {[%clk 0:00:15.3]} 62. Rxf4
{[%clk 0:00:02.3]} 62... Ke3 {[%clk 0:00:15.7]} 0-1